fUSD/lending_fUSD_20260614
["ID","MTS","AMOUNT","RATE_DAILY","PERIOD"]
[424980028,1781367077000,-700.0,0.00030125,2]
[424980036,1781367077000,-700.0,0.00030125,2]
[424980039,1781367077000,-700.0,0.00030125,2]
[424980037,1781367077000,-700.0,0.00030125,2]
[424980041,1781367077000,-700.0,0.00030125,2]
[424980040,1781367077000,-700.0,0.00030125,2]
[424980045,1781367077000,-200.0,0.00030125,2]
[424980044,1781367077000,-526.0,0.00030125,2]
[424980049,1781367077000,-156.66123959,0.00030125,2]
[424980046,1781367077000,-174.06804399,0.00030125,2]
[424980047,1781367077000,-174.06804398,0.00030125,2]
[424980048,1781367077000,-200.0,0.00030125,2]
[424979993,1781367077000,-22499.99,0.00030125,2]
[424980038,1781367077000,-700.0,0.00030125,2]
[424980027,1781367077000,-700.0,0.00030125,2]
[424980050,1781367077000,-156.66123959,0.00030125,2]
[424980022,1781367077000,-700.0,0.00030125,2]
[424979997,1781367077000,-700.0,0.00030125,2]
[424980001,1781367077000,-700.0,0.00030125,2]
[424980003,1781367077000,-700.0,0.00030125,2]
[424980002,1781367077000,-700.0,0.00030125,2]
[424980000,1781367077000,-700.0,0.00030125,2]
[424980007,1781367077000,-700.0,0.00030125,2]
[424980023,1781367077000,-700.0,0.00030125,2]
[424980009,1781367077000,-700.0,0.00030125,2]
[424980006,1781367077000,-700.0,0.00030125,2]
[424980005,1781367077000,-700.0,0.00030125,2]
[424980008,1781367077000,-700.0,0.00030125,2]
[424980011,1781367077000,-700.0,0.00030125,2]
[424980004,1781367077000,-700.0,0.00030125,2]
[424980012,1781367077000,-700.0,0.00030125,2]
[424980017,1781367077000,-700.0,0.00030125,2]
[424980018,1781367077000,-700.0,0.00030125,2]
[424980013,1781367077000,-700.0,0.00030125,2]
[424980015,1781367077000,-700.0,0.00030125,2]
[424980016,1781367077000,-700.0,0.00030125,2]
[424980014,1781367077000,-700.0,0.00030125,2]
[424980019,1781367077000,-700.0,0.00030125,2]
[424980020,1781367077000,-700.0,0.00030125,2]
[424980021,1781367077000,-700.0,0.00030125,2]
[424980029,1781367077000,-700.0,0.00030125,2]
[424980010,1781367077000,-700.0,0.00030125,2]
[424980089,1781367078000,-590.57726571,0.00030137,2]
[424980080,1781367078000,-150.0,0.00030137,2]
[424980085,1781367078000,-224.0,0.00030137,120]
[424980081,1781367078000,-300.0,0.00030137,60]
[424980086,1781367078000,-187.0,0.00030137,60]
[424980082,1781367078000,-300.0,0.00030137,60]
[424980079,1781367078000,-236.86555584,0.00030137,7]
[424980083,1781367078000,-197.0,0.00030137,60]
[424980087,1781367078000,-151.83347017,0.00030137,2]
[424980078,1781367078000,-791.51571233,0.00030137,7]
[424980088,1781367078000,-3000.0,0.00030137,2]
[424980101,1781367078000,-5000.0,0.00030146,2]
[424980090,1781367078000,-200.0,0.00030137,60]
[424980091,1781367078000,-200.0,0.00030137,60]
[424980092,1781367078000,-168.0,0.00030137,60]
[424980093,1781367078000,-1151.99,0.00030137,2]
[424980094,1781367078000,-775.75,0.00030137,30]
[424980096,1781367078000,-256.92508527,0.00030139,2]
[424980095,1781367078000,-849.24,0.00030137,120]
[424980100,1781367078000,-5000.0,0.00030146,2]
[424980098,1781367078000,-176.96,0.0003014,4]
[424980109,1781367078000,-427.0,0.0003015,30]
[424980077,1781367078000,-593.63678425,0.00030137,7]
[424980097,1781367078000,-1929.71978897,0.00030139,2]
[424980069,1781367078000,-1000.0,0.00030136,120]
[424980064,1781367078000,-1000.0,0.00030136,120]
[424980070,1781367078000,-1088.62102839,0.00030136,120]
[424980103,1781367078000,-5000.0,0.00030146,2]
[424980054,1781367078000,-169.83554399,0.0003013,30]
[424980052,1781367078000,-2000.0,0.00030125,3]
[424980051,1781367078000,-2000.0,0.00030125,3]
[424980053,1781367078000,-200.0,0.00030125,2]
[424980055,1781367078000,-24722.56735924,0.0003013,7]
[424980056,1781367078000,-1920.58165799,0.0003013,2]
[424980057,1781367078000,-30067.55578563,0.0003013,2]
[424980062,1781367078000,-1000.0,0.00030136,120]
[424980061,1781367078000,-1975.53397638,0.00030136,120]
[424980058,1781367078000,-2720.78835053,0.0003013,120]
[424980059,1781367078000,-1047.16,0.00030132,6]
[424980066,1781367078000,-1000.0,0.00030136,120]
[424980065,1781367078000,-1000.0,0.00030136,120]
[424980060,1781367078000,-205.04995436,0.00030134,2]
[424980063,1781367078000,-1000.0,0.00030136,120]
[424980068,1781367078000,-1000.0,0.00030136,120]
[424980075,1781367078000,-197.87892808,0.00030137,7]
[424980076,1781367078000,-395.75785616,0.00030137,7]
[424980067,1781367078000,-1000.0,0.00030136,120]
[424980074,1781367078000,-169.07624704,0.00030137,40]
[424980072,1781367078000,-1000.0,0.00030137,50]
[424980071,1781367078000,-4009.0,0.00030137,30]
[424980073,1781367078000,-1000.0,0.00030137,50]
[424980107,1781367078000,-352.0,0.0003015,30]
[424980084,1781367078000,-524.0,0.00030137,120]
[424980102,1781367078000,-5000.0,0.00030146,2]
[424980133,1781367078000,-2499.99,0.0003025,2]
[424980141,1781367078000,-5000.0,0.0003025,2]
[424980135,1781367078000,-22499.99,0.0003025,2]
[424980132,1781367078000,-22500.0,0.0003025,2]
[424980138,1781367078000,-24999.97,0.0003025,2]
[424980140,1781367078000,-469873.9696194,0.0003025,2]
[424980137,1781367078000,-2500.0,0.0003025,2]
[424980136,1781367078000,-25000.0,0.0003025,2]
[424980139,1781367078000,-2500.0,0.0003025,2]
[424980143,1781367078000,-5000.0,0.00030354,2]
[424980152,1781367078000,-2500.0,0.000305,2]
[424980134,1781367078000,-2499.99,0.0003025,2]
[424980144,1781367078000,-22500.0,0.00030375,2]
[424980150,1781367078000,-2481.49411911,0.00030467,2]
[424980148,1781367078000,-200.0,0.00030426,2]
[424980145,1781367078000,-212.0,0.00030414,3]
[424980146,1781367078000,-200.0,0.00030426,2]
[424980147,1781367078000,-200.0,0.00030426,2]
[424980151,1781367078000,-3323.7647055,0.000305,120]
[424980149,1781367078000,-200.0,0.00030426,2]
[424980154,1781367078000,-10500.01,0.000305,2]
[424980156,1781367078000,-2499.98,0.000305,2]
[424980157,1781367078000,-600.88088,0.0003053,120]
[424980099,1781367078000,-9771.46224862,0.00030146,2]
[424980142,1781367078000,-5018.95551406,0.00030354,2]
[424980131,1781367078000,-2500.0,0.0003025,2]
[424980153,1781367078000,-22500.0,0.000305,2]
[424980129,1781367078000,-1000.0,0.000302,2]
[424980130,1781367078000,-2020.9,0.00030239,2]
[424980105,1781367078000,-2981.0,0.00030149,30]
[424980108,1781367078000,-1161.0,0.0003015,30]
[424980106,1781367078000,-523.0,0.0003015,30]
[424980111,1781367078000,-397.0,0.0003015,30]
[424980110,1781367078000,-401.0,0.0003015,30]
[424980117,1781367078000,-172.0,0.00030155,30]
[424980113,1781367078000,-1813.0,0.0003015,30]
[424980114,1781367078000,-348.0,0.0003015,30]
[424980112,1781367078000,-471.0,0.0003015,30]
[424980115,1781367078000,-282.0,0.0003015,30]
[424980118,1781367078000,-1929.71978897,0.00030156,2]
[424980104,1781367078000,-613.01,0.00030149,7]
[424980119,1781367078000,-1929.71978897,0.0003018,2]
[424980116,1781367078000,-911.0,0.00030155,30]
[424980123,1781367078000,-200.0,0.000302,11]
[424980127,1781367078000,-300.0,0.000302,2]
[424980155,1781367078000,-2499.99,0.000305,2]
[424980125,1781367078000,-613.2,0.000302,7]
[424980126,1781367078000,-316.0,0.000302,2]
[424980124,1781367078000,-15836.58802795,0.000302,2]
[424980122,1781367078000,-1929.71978897,0.00030193,2]
[424980121,1781367078000,-206.0,0.00030192,120]
[424980120,1781367078000,-613.318425,0.00030192,120]
[424980128,1781367078000,-309.0,0.000302,2]
[424980180,1781367079000,-765.10286278,0.00030654,7]
[424980179,1781367079000,-776.52368037,0.00030654,7]
[424980190,1781367079000,-848.2323068,0.00030654,7]
[424980188,1781367079000,-848.55243884,0.00030654,7]
[424980182,1781367079000,-810.88641195,0.00030654,7]
[424980183,1781367079000,-901.55355894,0.00030654,7]
[424980185,1781367079000,-860.2493015,0.00030654,7]
[424980184,1781367079000,-806.17074036,0.00030654,7]
[424980200,1781367079000,-848.97757399,0.00030659,7]
[424980191,1781367079000,-753.04596637,0.00030654,7]
[424980198,1781367079000,-864.92302895,0.00030659,7]
[424980193,1781367079000,-934.85354363,0.00030654,7]
[424980196,1781367079000,-883.62658807,0.00030659,7]
[424980192,1781367079000,-859.35464216,0.00030654,7]
[424980197,1781367079000,-824.78315499,0.00030659,7]
[424980199,1781367079000,-802.01685691,0.00030659,7]
[424980195,1781367079000,-983.99695485,0.00030654,7]
[424980177,1781367079000,-1379.30456271,0.00030654,7]
[424980194,1781367079000,-774.1848363,0.00030654,7]
[424980189,1781367079000,-782.76092959,0.00030654,7]
[424980181,1781367079000,-902.23940285,0.00030654,7]
[424980165,1781367079000,-613.2,0.000306,7]
[424980178,1781367079000,-982.63263309,0.00030654,5]
[424980202,1781367079000,-786.11560624,0.00030665,7]
[424980158,1781367079000,-350.0,0.00030531,4]
[424980160,1781367079000,-283.24,0.00030579,120]
[424980159,1781367079000,-618.0,0.00030562,10]
[424980162,1781367079000,-400.0,0.00030579,120]
[424980161,1781367079000,-400.0,0.00030579,120]
[424980169,1781367079000,-763.29799149,0.00030654,7]
[424980168,1781367079000,-798.40711697,0.00030654,7]
[424980167,1781367079000,-775.75,0.00030635,30]
[424980187,1781367079000,-776.48381664,0.00030654,7]
[424980164,1781367079000,-1368.22,0.00030596,2]
[424980166,1781367079000,-22500.0,0.00030625,2]
[424980171,1781367079000,-755.08039098,0.00030654,2]
[424980170,1781367079000,-790.44634055,0.00030654,7]
[424980174,1781367079000,-1248.6505387,0.00030654,7]
[424980172,1781367079000,-834.93901165,0.00030654,7]
[424980173,1781367079000,-847.61373828,0.00030654,7]
[424980176,1781367079000,-1014.29436858,0.00030654,7]
[424980175,1781367079000,-805.75265595,0.00030654,7]
[424980186,1781367079000,-868.6645577,0.00030654,7]
[424980163,1781367079000,-336.0,0.00030579,120]
[424980203,1781367079000,-853.87441688,0.00030665,7]
[424980201,1781367079000,-1734.44,0.0003066,2]
[424980243,1781367079000,-550.0,0.00031,30]
[424980228,1781367079000,-2585.0,0.000309,120]
[424980229,1781367079000,-3052.82,0.00030946,120]
[424980227,1781367079000,-2600.0,0.000309,120]
[424980225,1781367079000,-418.3,0.000309,120]
[424980230,1781367079000,-563.01034303,0.00030983,2]
[424980235,1781367079000,-5000.0,0.00031,2]
[424980236,1781367079000,-13000.0,0.00031,2]
[424980245,1781367079000,-550.0,0.00031,30]
[424980241,1781367079000,-5000.0,0.00031,10]
[424980231,1781367079000,-151.0,0.00030997,7]
[424980237,1781367079000,-40024.60501489,0.00031,2]
[424980244,1781367079000,-550.0,0.00031,30]
[424980239,1781367079000,-20139.97025054,0.00031,14]
[424980242,1781367079000,-613.2,0.00031,7]
[424980240,1781367079000,-3004.85586596,0.00031,30]
[424980247,1781367079000,-550.0,0.00031,30]
[424980246,1781367079000,-550.0,0.00031,30]
[424980249,1781367079000,-1000.0,0.00031,120]
[424980248,1781367079000,-344.0,0.00031,30]
[424980205,1781367079000,-844.41938441,0.00030665,7]
[424980238,1781367079000,-351.6702025,0.00031,5]
[424980232,1781367079000,-50000.0,0.00031,6]
[424980233,1781367079000,-33984.0,0.00031,25]
[424980223,1781367079000,-1391.43872359,0.00030854,30]
[424980208,1781367079000,-200.0,0.00030731,2]
[424980206,1781367079000,-989.39464041,0.00030711,7]
[424980204,1781367079000,-768.61247896,0.00030665,7]
[424980209,1781367079000,-200.0,0.00030731,2]
[424980207,1781367079000,-200.0,0.00030731,2]
[424980211,1781367079000,-7999.6,0.0003075,2]
[424980226,1781367079000,-2600.0,0.000309,120]
[424980212,1781367079000,-1529.85203056,0.00030797,2]
[424980216,1781367079000,-572.87,0.00030836,2]
[424980221,1781367079000,-2471.08372962,0.00030854,30]
[424980210,1781367079000,-200.0,0.00030731,2]
[424980215,1781367079000,-573.32,0.00030836,2]
[424980214,1781367079000,-849.24,0.00030809,120]
[424980220,1781367079000,-150.0,0.00030854,30]
[424980219,1781367079000,-150.0,0.00030841,2]
[424980222,1781367079000,-150.0,0.00030854,30]
[424980217,1781367079000,-201.0,0.0003084,30]
[424980218,1781367079000,-1640.89519256,0.0003084,2]
[424980224,1781367079000,-504.0,0.00030883,14]
[424980213,1781367079000,-644.38411845,0.00030802,2]
[424980234,1781367079000,-10815.3989699,0.00031,2]
[424980276,1781367080000,-348.0,0.0003115,30]
[424980288,1781367080000,-156.91337517,0.0003125,14]
[424980287,1781367080000,-563.01034303,0.00031235,2]
[424980285,1781367080000,-568.355005,0.00031205,120]
[424980291,1781367080000,-849.24,0.00031288,120]
[424980281,1781367080000,-6076.0,0.00031194,2]
[424980282,1781367080000,-3644.0,0.00031194,2]
[424980283,1781367080000,-200.0,0.000312,11]
[424980284,1781367080000,-1000.0,0.000312,7]
[424980289,1781367080000,-350.0,0.00031256,4]
[424980286,1781367080000,-150.0,0.00031233,2]
[424980290,1781367080000,-563.01034303,0.0003126,2]
[424980304,1781367080000,-550.0,0.00031392,120]
[424980295,1781367080000,-383.0,0.00031348,2]
[424980294,1781367080000,-8671.0,0.00031313,10]
[424980303,1781367080000,-550.0,0.00031392,120]
[424980292,1781367080000,-151.72527075,0.00031298,2]
[424980296,1781367080000,-1228.0,0.00031348,2]
[424980300,1781367080000,-200.0,0.00031348,2]
[424980302,1781367080000,-563.01034303,0.00031381,2]
[424980297,1781367080000,-200.0,0.00031348,2]
[424980301,1781367080000,-136350.03931975,0.0003135,2]
[424980298,1781367080000,-200.0,0.00031348,2]
[424980299,1781367080000,-200.0,0.00031348,2]
[424980275,1781367080000,-1813.0,0.0003115,30]
[424980293,1781367080000,-3717.4705527,0.00031299,2]
[424980278,1781367080000,-911.0,0.00031155,30]
[424980254,1781367080000,-2617.91,0.00031031,7]
[424980277,1781367080000,-282.0,0.0003115,30]
[424980250,1781367080000,-151.0,0.00031,7]
[424980255,1781367080000,-15000.0,0.00031034,2]
[424980251,1781367080000,-908.7,0.00031,7]
[424980253,1781367080000,-388.0,0.00031022,2]
[424980252,1781367080000,-563.01034303,0.00031021,2]
[424980256,1781367080000,-200.0,0.00031038,2]
[424980257,1781367080000,-200.0,0.00031038,2]
[424980264,1781367080000,-516.0,0.00031087,2]
[424980260,1781367080000,-15278.0,0.0003108,2]
[424980263,1781367080000,-711.0,0.0003108,2]
[424980259,1781367080000,-200.0,0.00031038,2]
[424980265,1781367080000,-350.0,0.00031116,5]
[424980258,1781367080000,-200.0,0.00031038,2]
[424980266,1781367080000,-775.75,0.00031133,30]
[424980262,1781367080000,-1073.0,0.0003108,2]
[424980261,1781367080000,-6436.0,0.0003108,2]
[424980267,1781367080000,-2981.0,0.00031149,30]
[424980280,1781367080000,-150.311856,0.00031186,2]
[424980269,1781367080000,-352.0,0.0003115,30]
[424980279,1781367080000,-172.0,0.00031155,30]
[424980270,1781367080000,-1161.0,0.0003115,30]
[424980271,1781367080000,-427.0,0.0003115,30]
[424980268,1781367080000,-523.0,0.0003115,30]
[424980272,1781367080000,-401.0,0.0003115,30]
[424980273,1781367080000,-397.0,0.0003115,30]
[424980274,1781367080000,-471.0,0.0003115,30]
[424980306,1781367080000,-613.2,0.000314,7]
[424980348,1781367080000,-322748.0566892,0.00031565,2]
[424980310,1781367080000,-833.92535152,0.00031461,2]
[424980331,1781367080000,-1018.26292661,0.00031516,7]
[424980339,1781367080000,-922.33497476,0.00031527,7]
[424980338,1781367080000,-1024.64930026,0.00031527,7]
[424980341,1781367080000,-160.0,0.00031539,3]
[424980343,1781367080000,-523.079001,0.00031543,120]
[424980346,1781367080000,-2350.0,0.00031564,120]
[424980344,1781367080000,-541.88,0.00031554,30]
[424980340,1781367080000,-1013.30326129,0.00031527,7]
[424980345,1781367080000,-2350.0,0.00031564,120]
[424980347,1781367080000,-2260.0,0.00031564,120]
[424980342,1781367080000,-563.01034303,0.00031541,2]
[424980350,1781367080000,-150.0,0.0003161,2]
[424980355,1781367080000,-188.45686017,0.0003161,2]
[424980351,1781367080000,-150.0,0.0003161,2]
[424980352,1781367080000,-150.0,0.0003161,2]
[424980356,1781367080000,-2002.1293,0.00031617,2]
[424980353,1781367080000,-150.0,0.0003161,2]
[424980358,1781367080000,-1253.6099,0.00031617,2]
[424980357,1781367080000,-10000.0,0.00031617,2]
[424980354,1781367080000,-150.0,0.0003161,2]
[424980359,1781367080000,-2000.0,0.00031617,2]
[424980360,1781367080000,-200.0,0.00031631,30]
[424980362,1781367080000,-200.0,0.00031631,30]
[424980361,1781367080000,-200.0,0.00031631,30]
[424980305,1781367080000,-502.0,0.00031392,120]
[424980335,1781367080000,-929.02180356,0.00031516,7]
[424980334,1781367080000,-903.65515965,0.00031516,7]
[424980349,1781367080000,-350.0,0.00031597,5]
[424980330,1781367080000,-1032.2991618,0.00031515,7]
[424980307,1781367080000,-563.01034303,0.00031409,2]
[424980327,1781367080000,-1655.16547526,0.00031515,7]
[424980312,1781367080000,-563.01034303,0.00031495,2]
[424980311,1781367080000,-308.37612401,0.00031469,2]
[424980309,1781367080000,-668.65185756,0.00031461,2]
[424980314,1781367080000,-150.0,0.000315,2]
[424980308,1781367080000,-151.0,0.00031461,2]
[424980313,1781367080000,-201.21537915,0.000315,2]
[424980316,1781367080000,-308.31010225,0.00031506,30]
[424980317,1781367080000,-1000.0,0.00031507,60]
[424980320,1781367080000,-948.53560867,0.00031515,7]
[424980319,1781367080000,-915.95758979,0.00031515,7]
[424980322,1781367080000,-1001.92681397,0.00031515,7]
[424980315,1781367080000,-205.04995436,0.00031503,2]
[424980336,1781367080000,-1060.35190569,0.0003152,7]
[424980333,1781367080000,-1017.87876816,0.00031516,7]
[424980318,1781367080000,-958.08854036,0.00031515,7]
[424980332,1781367080000,-939.31311551,0.00031516,7]
[424980329,1781367080000,-918.12343534,0.00031515,7]
[424980337,1781367080000,-1018.77308879,0.0003152,7]
[424980326,1781367080000,-1217.1532423,0.00031515,7]
[424980328,1781367080000,-931.82841644,0.00031515,7]
[424980325,1781367080000,-966.90318714,0.00031515,7]
[424980324,1781367080000,-1498.38064644,0.00031515,7]
[424980321,1781367080000,-906.09646918,0.00031515,2]
[424980323,1781367080000,-1017.13648593,0.00031515,7]
[424980399,1781367081000,-164.58473457,0.00032,120]
[424980401,1781367081000,-184.97756148,0.00032,120]
[424980405,1781367081000,-164.5741033,0.00032,120]
[424980403,1781367081000,-310.41162899,0.00032,120]
[424980400,1781367081000,-538.34799775,0.00032,120]
[424980396,1781367081000,-170.12529899,0.00032,120]
[424980402,1781367081000,-304.04424387,0.00032,120]
[424980398,1781367081000,-197.55424877,0.00032,120]
[424980397,1781367081000,-196.70021431,0.00032,120]
[424980404,1781367081000,-248.05154412,0.00032,120]
[424980388,1781367081000,-298.38688076,0.00031813,120]
[424980395,1781367081000,-50000.0,0.00032,7]
[424980406,1781367081000,-195.74184617,0.00032,120]
[424980418,1781367081000,-1000.0,0.00032,120]
[424980414,1781367081000,-177.09779348,0.00032,120]
[424980415,1781367081000,-177.22668535,0.00032,120]
[424980409,1781367081000,-197.65237164,0.00032,120]
[424980408,1781367081000,-188.21185463,0.00032,120]
[424980413,1781367081000,-191.29273043,0.00032,120]
[424980417,1781367081000,-3536.2947377,0.00032,120]
[424980411,1781367081000,-189.39016739,0.00032,120]
[424980412,1781367081000,-184.74721476,0.00032,120]
[424980410,1781367081000,-197.21098101,0.00032,120]
[424980416,1781367081000,-501.43180561,0.00032,120]
[424980428,1781367081000,-216.96429059,0.00032129,30]
[424980387,1781367081000,-613.2,0.000318,7]
[424980407,1781367081000,-473.22809907,0.00032,120]
[424980390,1781367081000,-512.49574,0.00031881,120]
[424980366,1781367081000,-850.0,0.00031637,60]
[424980385,1781367081000,-151.0,0.00031741,2]
[424980421,1781367081000,-205.60835627,0.00032,120]
[424980364,1781367081000,-256.0,0.00031631,30]
[424980365,1781367081000,-775.75,0.00031631,30]
[424980369,1781367081000,-500.0,0.00031637,60]
[424980367,1781367081000,-850.0,0.00031637,60]
[424980363,1781367081000,-200.0,0.00031631,30]
[424980370,1781367081000,-500.0,0.00031637,60]
[424980368,1781367081000,-723.0,0.00031637,60]
[424980372,1781367081000,-253.61437056,0.00031644,40]
[424980382,1781367081000,-151.0,0.00031728,2]
[424980371,1781367081000,-500.0,0.00031637,60]
[424980375,1781367081000,-504.0,0.00031688,14]
[424980380,1781367081000,-151.49,0.00031728,2]
[424980381,1781367081000,-151.0,0.00031728,2]
[424980379,1781367081000,-151.0,0.00031728,2]
[424980377,1781367081000,-563.01034303,0.00031728,2]
[424980374,1781367081000,-5091.7,0.00031645,14]
[424980376,1781367081000,-4819.71731782,0.000317,120]
[424980378,1781367081000,-151.0,0.00031728,2]
[424980373,1781367081000,-150.0,0.00031644,2]
[424980383,1781367081000,-563.01034303,0.00031739,2]
[424980384,1781367081000,-563.01034303,0.0003174,2]
[424980386,1781367081000,-3052.82,0.00031768,120]
[424980392,1781367081000,-418.3,0.000319,120]
[424980389,1781367081000,-563.01034303,0.00031818,2]
[424980393,1781367081000,-618.0,0.00031903,10]
[424980394,1781367081000,-50000.0,0.00032,8]
[424980391,1781367081000,-150.0,0.0003189,120]
[424980420,1781367081000,-700.0,0.00032,2]
[424980432,1781367081000,-352.0,0.0003215,30]
[424980419,1781367081000,-1767.05634761,0.00032,2]
[424980455,1781367081000,-563.01034303,0.00032251,2]
[424980457,1781367081000,-563.01034303,0.00032296,2]
[424980458,1781367081000,-912.3933001,0.000323,2]
[424980459,1781367081000,-202.69763327,0.000323,30]
[424980464,1781367081000,-150.0,0.00032345,2]
[424980460,1781367081000,-501.83956658,0.000323,5]
[424980462,1781367081000,-16278.63852627,0.000323,120]
[424980463,1781367081000,-150.0,0.00032345,2]
[424980466,1781367081000,-150.0,0.00032345,2]
[424980461,1781367081000,-500.0,0.000323,5]
[424980456,1781367081000,-563.01034303,0.00032267,2]
[424980465,1781367081000,-150.0,0.00032345,2]
[424980452,1781367081000,-100000.0,0.00032232,30]
[424980478,1781367081000,-185.84208573,0.0003248,7]
[424980467,1781367081000,-150.0,0.00032345,2]
[424980469,1781367081000,-150.0,0.00032345,2]
[424980473,1781367081000,-563.01034303,0.00032405,2]
[424980470,1781367081000,-298.38688076,0.00032357,120]
[424980475,1781367081000,-500.0,0.00032459,60]
[424980477,1781367081000,-308.37612401,0.00032469,2]
[424980476,1781367081000,-250.19903499,0.00032469,2]
[424980474,1781367081000,-298.38688076,0.00032457,120]
[424980472,1781367081000,-150.0,0.00032383,2]
[424980479,1781367081000,-2110.83884536,0.0003248,7]
[424980481,1781367081000,-340.50755028,0.0003248,7]
[424980422,1781367081000,-563.01034303,0.00032005,2]
[424980468,1781367081000,-150.0,0.00032345,2]
[424980451,1781367081000,-100000.0,0.00032232,120]
[424980471,1781367081000,-563.01034303,0.0003237,2]
[424980453,1781367081000,-100000.0,0.00032232,60]
[424980450,1781367081000,-520.7,0.00032231,60]
[424980429,1781367081000,-775.75,0.0003213,30]
[424980423,1781367081000,-6393.00190022,0.00032025,2]
[424980425,1781367081000,-152.0,0.00032086,7]
[424980424,1781367081000,-298.38688076,0.00032068,120]
[424980427,1781367081000,-563.01034303,0.00032125,2]
[424980430,1781367081000,-2981.0,0.00032149,30]
[424980440,1781367081000,-282.0,0.0003215,30]
[424980433,1781367081000,-1161.0,0.0003215,30]
[424980431,1781367081000,-523.0,0.0003215,30]
[424980480,1781367081000,-2043.89900716,0.0003248,7]
[424980439,1781367081000,-348.0,0.0003215,30]
[424980434,1781367081000,-427.0,0.0003215,30]
[424980426,1781367081000,-298.38688076,0.00032104,120]
[424980441,1781367081000,-911.0,0.00032155,30]
[424980445,1781367081000,-613.2,0.000322,7]
[424980437,1781367081000,-471.0,0.0003215,30]
[424980447,1781367081000,-2020.9,0.0003221,5]
[424980446,1781367081000,-254.0,0.00032203,3]
[424980449,1781367081000,-22254.32028786,0.00032229,2]
[424980443,1781367081000,-153.68216731,0.00032183,16]
[424980448,1781367081000,-502.064755,0.00032218,120]
[424980444,1781367081000,-200.0,0.000322,12]
[424980436,1781367081000,-397.0,0.0003215,30]
[424980438,1781367081000,-1813.0,0.0003215,30]
[424980442,1781367081000,-172.0,0.00032155,30]
[424980435,1781367081000,-401.0,0.0003215,30]
[424980454,1781367081000,-89799.66313349,0.00032232,90]
[424980504,1781367082000,-432.269641,0.00032556,120]
[424980513,1781367082000,-2186.316,0.000326,20]
[424980506,1781367082000,-1003.27330249,0.00032558,2]
[424980507,1781367082000,-151.0,0.00032563,2]
[424980505,1781367082000,-303.9,0.00032558,5]
[424980503,1781367082000,-483.35,0.00032554,2]
[424980510,1781367082000,-3052.82,0.0003259,120]
[424980509,1781367082000,-151.0,0.00032563,2]
[424980523,1781367082000,-504.65,0.00032605,30]
[424980511,1781367082000,-439.82,0.000326,2]
[424980508,1781367082000,-225.67,0.00032563,2]
[424980515,1781367082000,-2186.316,0.000326,30]
[424980516,1781367082000,-2186.31,0.000326,20]
[424980522,1781367082000,-150.0,0.00032602,2]
[424980502,1781367082000,-151.0,0.0003255,2]
[424980519,1781367082000,-205.99435498,0.000326,30]
[424980512,1781367082000,-174.97224954,0.000326,30]
[424980498,1781367082000,-398.96,0.00032534,6]
[424980486,1781367082000,-1418.58204,0.000325,120]
[424980497,1781367082000,-563.01034303,0.00032521,2]
[424980514,1781367082000,-233.29633272,0.000326,30]
[424980482,1781367082000,-208.23677591,0.0003248,7]
[424980484,1781367082000,-1000.0,0.000325,2]
[424980485,1781367082000,-1002.04748866,0.000325,7]
[424980483,1781367082000,-504.0,0.00032494,15]
[424980487,1781367082000,-1000.0,0.000325,14]
[424980489,1781367082000,-1300.42969091,0.000325,7]